fUSD/lending_fUSD_20260517
["ID","MTS","AMOUNT","RATE_DAILY","PERIOD"]
[422468021,1778970650000,-300.0,0.00036365,2]
[422468019,1778970650000,-1095.07136273,0.00036365,2]
[422468028,1778970650000,-300.0,0.00036365,2]
[422468012,1778970650000,-300.0,0.00036365,2]
[422468017,1778970650000,-300.0,0.00036365,2]
[422468006,1778970650000,-594.0,0.00036243,2]
[422468010,1778970650000,-300.0,0.00036364,10]
[422468016,1778970650000,-300.0,0.00036365,2]
[422468018,1778970650000,-300.0,0.00036365,2]
[422468025,1778970650000,-300.0,0.00036365,2]
[422468034,1778970650000,-300.0,0.00036365,2]
[422468024,1778970650000,-300.0,0.00036365,2]
[422468022,1778970650000,-300.0,0.00036365,2]
[422468026,1778970650000,-300.0,0.00036365,2]
[422468036,1778970650000,-300.0,0.00036365,2]
[422468037,1778970650000,-300.0,0.00036365,2]
[422468035,1778970650000,-300.0,0.00036365,2]
[422468042,1778970650000,-1067.23644452,0.00036365,2]
[422468032,1778970650000,-300.0,0.00036365,2]
[422468040,1778970650000,-300.0,0.00036365,2]
[422468031,1778970650000,-300.0,0.00036365,2]
[422468033,1778970650000,-492.84022017,0.00036365,2]
[422468030,1778970650000,-300.0,0.00036365,2]
[422468013,1778970650000,-551.15031253,0.00036365,2]
[422468023,1778970650000,-300.0,0.00036365,2]
[422468015,1778970650000,-300.0,0.00036365,2]
[422467997,1778970650000,-1000.0,0.00036199,12]
[422468008,1778970650000,-2000.0,0.000363,7]
[422468041,1778970650000,-300.0,0.00036365,2]
[422467982,1778970650000,-240.725161,0.00035955,7]
[422467990,1778970650000,-155.0,0.00036145,30]
[422467993,1778970650000,-206.0,0.0003619,30]
[422467992,1778970650000,-914.9,0.00036153,30]
[422467981,1778970650000,-151.0,0.00035955,7]
[422467983,1778970650000,-300.0,0.00036047,10]
[422467984,1778970650000,-400.0,0.00036048,2]
[422467986,1778970650000,-400.0,0.00036048,2]
[422467987,1778970650000,-1000.0,0.00036048,2]
[422467985,1778970650000,-400.0,0.00036048,2]
[422467988,1778970650000,-1000.0,0.00036048,2]
[422467989,1778970650000,-1000.0,0.00036048,2]
[422467995,1778970650000,-288.0,0.00036192,30]
[422467994,1778970650000,-151.0,0.0003619,30]
[422467996,1778970650000,-1000.0,0.00036197,34]
[422467999,1778970650000,-212.0,0.00036207,30]
[422467998,1778970650000,-1000.0,0.00036199,31]
[422468003,1778970650000,-164.0,0.00036207,30]
[422468004,1778970650000,-535.0,0.00036214,11]
[422468001,1778970650000,-691.0,0.00036207,30]
[422468002,1778970650000,-274.0,0.00036207,30]
[422468000,1778970650000,-151.0,0.00036207,30]
[422468005,1778970650000,-680.0,0.00036243,2]
[422468009,1778970650000,-424.0,0.00036309,2]
[422468007,1778970650000,-1000.0,0.00036295,76]
[422468011,1778970650000,-300.0,0.00036364,10]
[422468014,1778970650000,-1127.79186826,0.00036365,2]
[422468039,1778970650000,-300.0,0.00036365,2]
[422467991,1778970650000,-418.0,0.00036145,30]
[422468029,1778970650000,-300.0,0.00036365,2]
[422468080,1778970650000,-452.04263183,0.00036365,2]
[422468070,1778970650000,-300.0,0.00036365,2]
[422468078,1778970650000,-577.38521552,0.00036365,2]
[422468079,1778970650000,-300.0,0.00036365,2]
[422468075,1778970650000,-300.0,0.00036365,2]
[422468073,1778970650000,-310.99730567,0.00036365,2]
[422468077,1778970650000,-300.0,0.00036365,2]
[422468082,1778970650000,-300.0,0.00036365,2]
[422468083,1778970650000,-300.0,0.00036365,2]
[422468093,1778970650000,-300.0,0.00036365,2]
[422468092,1778970650000,-1127.79186826,0.00036365,2]
[422468087,1778970650000,-484.23291958,0.00036365,2]
[422468085,1778970650000,-300.0,0.00036365,2]
[422468086,1778970650000,-300.0,0.00036365,2]
[422468089,1778970650000,-300.0,0.00036365,2]
[422468088,1778970650000,-309.92123961,0.00036365,2]
[422468090,1778970650000,-300.0,0.00036365,2]
[422468091,1778970650000,-300.0,0.00036365,2]
[422468095,1778970650000,-300.0,0.00036365,2]
[422468096,1778970650000,-300.0,0.00036365,2]
[422468094,1778970650000,-300.0,0.00036365,2]
[422468097,1778970650000,-1095.07136273,0.00036365,2]
[422468099,1778970650000,-300.0,0.00036365,2]
[422468101,1778970650000,-300.0,0.00036365,2]
[422468098,1778970650000,-352.83198323,0.00036365,2]
[422468100,1778970650000,-300.0,0.00036365,2]
[422468038,1778970650000,-604.63991303,0.00036365,2]
[422468081,1778970650000,-300.0,0.00036365,2]
[422468072,1778970650000,-300.0,0.00036365,2]
[422468084,1778970650000,-300.0,0.00036365,2]
[422468076,1778970650000,-463.98731895,0.00036365,2]
[422468052,1778970650000,-300.0,0.00036365,2]
[422468074,1778970650000,-300.0,0.00036365,2]
[422468054,1778970650000,-300.0,0.00036365,2]
[422468043,1778970650000,-893.66998664,0.00036365,2]
[422468053,1778970650000,-300.0,0.00036365,2]
[422468044,1778970650000,-726.26438584,0.00036365,2]
[422468050,1778970650000,-300.20522211,0.00036365,2]
[422468051,1778970650000,-300.0,0.00036365,2]
[422468047,1778970650000,-300.0,0.00036365,2]
[422468046,1778970650000,-301.8794073,0.00036365,2]
[422468045,1778970650000,-300.0,0.00036365,2]
[422468049,1778970650000,-300.66230964,0.00036365,2]
[422468048,1778970650000,-300.0,0.00036365,2]
[422468057,1778970650000,-1912.98732614,0.00036365,2]
[422468055,1778970650000,-949.2762563,0.00036365,2]
[422468058,1778970650000,-300.0,0.00036365,2]
[422468069,1778970650000,-1791.04776837,0.00036365,2]
[422468071,1778970650000,-300.0,0.00036365,2]
[422468068,1778970650000,-300.0,0.00036365,2]
[422468062,1778970650000,-300.0,0.00036365,2]
[422468056,1778970650000,-300.0,0.00036365,2]
[422468066,1778970650000,-300.0,0.00036365,2]
[422468064,1778970650000,-1147.52562491,0.00036365,2]
[422468063,1778970650000,-300.0,0.00036365,2]
[422468065,1778970650000,-309.68315104,0.00036365,2]
[422468061,1778970650000,-300.0,0.00036365,2]
[422468059,1778970650000,-344.08088588,0.00036365,2]
[422468067,1778970650000,-864.71533708,0.00036365,2]
[422468060,1778970650000,-527.04605611,0.00036365,2]
[422468136,1778970651000,-300.0,0.00036365,2]
[422468133,1778970651000,-300.66230964,0.00036365,2]
[422468145,1778970651000,-300.0,0.00036365,2]
[422468137,1778970651000,-300.0,0.00036365,2]
[422468143,1778970651000,-344.08088588,0.00036365,2]
[422468135,1778970651000,-300.0,0.00036365,2]
[422468139,1778970651000,-949.2762563,0.00036365,2]
[422468140,1778970651000,-300.0,0.00036365,2]
[422468138,1778970651000,-300.0,0.00036365,2]
[422468148,1778970651000,-1147.52562491,0.00036365,2]
[422468141,1778970651000,-1912.98732614,0.00036365,2]
[422468134,1778970651000,-300.0,0.00036365,2]
[422468151,1778970651000,-864.71533708,0.00036365,2]
[422468146,1778970651000,-300.0,0.00036365,2]
[422468154,1778970651000,-300.0,0.00036365,2]
[422468149,1778970651000,-309.68315104,0.00036365,2]
[422468155,1778970651000,-300.0,0.00036365,2]
[422468144,1778970651000,-527.04605611,0.00036365,2]
[422468147,1778970651000,-300.0,0.00036365,2]
[422468153,1778970651000,-1791.04776837,0.00036365,2]
[422468152,1778970651000,-300.0,0.00036365,2]
[422468156,1778970651000,-300.0,0.00036365,2]
[422468158,1778970651000,-300.0,0.00036365,2]
[422468160,1778970651000,-463.98731895,0.00036365,2]
[422468159,1778970651000,-300.0,0.00036365,2]
[422468142,1778970651000,-300.0,0.00036365,2]
[422468150,1778970651000,-300.0,0.00036365,2]
[422468130,1778970651000,-301.8794073,0.00036365,2]
[422468105,1778970651000,-300.0,0.00036365,2]
[422468131,1778970651000,-301.98895015,0.00036365,2]
[422468157,1778970651000,-310.99730567,0.00036365,2]
[422468102,1778970651000,-300.0,0.00036365,2]
[422468103,1778970651000,-300.0,0.00036365,2]
[422468104,1778970651000,-300.0,0.00036365,2]
[422468106,1778970651000,-300.0,0.00036365,2]
[422468111,1778970651000,-300.0,0.00036365,2]
[422468107,1778970651000,-300.0,0.00036365,2]
[422468109,1778970651000,-300.0,0.00036365,2]
[422468110,1778970651000,-300.0,0.00036365,2]
[422468113,1778970651000,-300.0,0.00036365,2]
[422468117,1778970651000,-604.63991303,0.00036365,2]
[422468108,1778970651000,-300.0,0.00036365,2]
[422468112,1778970651000,-492.84022017,0.00036365,2]
[422468132,1778970651000,-300.0,0.00036365,2]
[422468114,1778970651000,-300.0,0.00036365,2]
[422468115,1778970651000,-300.0,0.00036365,2]
[422468129,1778970651000,-300.0,0.00036365,2]
[422468119,1778970651000,-300.0,0.00036365,2]
[422468118,1778970651000,-300.0,0.00036365,2]
[422468120,1778970651000,-300.0,0.00036365,2]
[422468121,1778970651000,-527.89629163,0.00036365,2]
[422468123,1778970651000,-1067.23644452,0.00036365,2]
[422468125,1778970651000,-313.13873214,0.00036365,2]
[422468122,1778970651000,-300.0,0.00036365,2]
[422468124,1778970651000,-893.66998664,0.00036365,2]
[422468127,1778970651000,-726.26438584,0.00036365,2]
[422468126,1778970651000,-300.34368571,0.00036365,2]
[422468128,1778970651000,-300.0,0.00036365,2]
[422468116,1778970651000,-300.0,0.00036365,2]
[422468167,1778970651000,-300.0,0.00036396,10]
[422468163,1778970651000,-300.0,0.00036365,2]
[422468162,1778970651000,-577.38521552,0.00036365,2]
[422468193,1778970651000,-151.14,0.00037551,60]
[422468196,1778970651000,-400.0,0.00037615,2]
[422468195,1778970651000,-400.0,0.00037615,2]
[422468202,1778970651000,-151.14,0.00037751,60]
[422468203,1778970651000,-284.12412572,0.00037753,120]
[422468201,1778970651000,-616.86,0.00037744,90]
[422468199,1778970651000,-151.14,0.00037651,60]
[422468198,1778970651000,-1000.0,0.00037615,2]
[422468200,1778970651000,-150.0,0.00037694,2]
[422468205,1778970651000,-1000.0,0.000378,7]
[422468206,1778970651000,-1109.0,0.000378,7]
[422468211,1778970651000,-535.0,0.00037816,13]
[422468214,1778970651000,-1197.37903538,0.00037913,2]
[422468207,1778970651000,-628.8113,0.00037808,2]
[422468208,1778970651000,-151.0,0.00037808,7]
[422468210,1778970651000,-514.67,0.00037808,5]
[422468215,1778970651000,-468.76,0.00037939,120]
[422468209,1778970651000,-165.309745,0.00037808,7]
[422468212,1778970651000,-151.14,0.00037851,60]
[422468213,1778970651000,-200.0,0.000379,15]
[422468217,1778970651000,-151.14,0.00037951,60]
[422468222,1778970651000,-926.0,0.00037969,2]
[422468216,1778970651000,-449.68,0.00037939,7]
[422468166,1778970651000,-300.0,0.00036392,10]
[422468220,1778970651000,-1270.0,0.00037969,2]
[422468219,1778970651000,-150.0,0.00037969,2]
[422468218,1778970651000,-300.0,0.00037967,10]
[422468204,1778970651000,-1000.0,0.000378,7]
[422468197,1778970651000,-1000.0,0.00037615,2]
[422468221,1778970651000,-1223.0,0.00037969,2]
[422468183,1778970651000,-151.29889973,0.00037,2]
[422468194,1778970651000,-354.0,0.00037569,30]
[422468164,1778970651000,-452.04263183,0.00036365,2]
[422468161,1778970651000,-300.0,0.00036365,2]
[422468168,1778970651000,-172.63,0.00036397,2]
[422468170,1778970651000,-2797.75145207,0.00036397,2]
[422468169,1778970651000,-2832.39793651,0.00036397,2]
[422468179,1778970651000,-300.0,0.00036899,10]
[422468181,1778970651000,-1197.37903538,0.00036913,2]
[422468172,1778970651000,-164.85598906,0.00036397,2]
[422468177,1778970651000,-350.0,0.00036849,5]
[422468175,1778970651000,-893.51,0.00036728,30]
[422468180,1778970651000,-8321.47,0.000369,14]
[422468171,1778970651000,-5863.59398004,0.00036397,2]
[422468165,1778970651000,-504.7,0.00036377,90]
[422468173,1778970651000,-1952.0,0.00036705,5]
[422468176,1778970651000,-535.0,0.00036748,12]
[422468187,1778970651000,-928.94463276,0.00037182,2]
[422468191,1778970651000,-1078.25,0.000373,30]
[422468188,1778970651000,-1000.0,0.00037199,36]
[422468190,1778970651000,-535.0,0.00037282,13]
[422468189,1778970651000,-1147.32,0.000372,7]
[422468185,1778970651000,-1236.57875545,0.0003712,7]
[422468174,1778970651000,-1561.0,0.00036705,5]
[422468186,1778970651000,-1415.98498362,0.0003712,7]
[422468192,1778970651000,-1074.0121,0.0003754,30]
[422468182,1778970651000,-342.39213103,0.00037,2]
[422468184,1778970651000,-1225.46385036,0.0003712,2]
[422468178,1778970651000,-628.8113,0.00036886,2]
[422468251,1778970652000,-151.0,0.00038327,7]
[422468259,1778970652000,-151.0,0.00038327,7]
[422468255,1778970652000,-151.428047,0.00038327,7]
[422468254,1778970652000,-151.0,0.00038327,7]
[422468256,1778970652000,-151.0,0.00038327,7]
[422468227,1778970652000,-208.44072055,0.00038,120]
[422468257,1778970652000,-151.0,0.00038327,7]
[422468260,1778970652000,-151.428047,0.00038327,7]
[422468261,1778970652000,-151.0,0.00038327,7]
[422468258,1778970652000,-151.428047,0.00038327,7]
[422468252,1778970652000,-151.0,0.00038327,7]
[422468270,1778970652000,-151.0,0.00038327,7]
[422468265,1778970652000,-151.0,0.00038327,7]
[422468264,1778970652000,-151.0,0.00038327,7]
[422468266,1778970652000,-151.0,0.00038327,7]
[422468267,1778970652000,-151.0,0.00038327,7]
[422468271,1778970652000,-284.289204,0.00038327,7]
[422468272,1778970652000,-284.289204,0.00038327,7]
[422468268,1778970652000,-151.0,0.00038327,7]
[422468269,1778970652000,-151.0,0.00038327,7]
[422468273,1778970652000,-284.289204,0.00038327,7]
[422468262,1778970652000,-151.0,0.00038327,7]
[422468263,1778970652000,-170.352023,0.00038327,7]
[422468250,1778970652000,-151.0,0.00038327,7]
[422468232,1778970652000,-8321.47,0.000381,14]
[422468247,1778970652000,-784239.691725,0.00038327,2]
[422468226,1778970652000,-151.0,0.00038,120]
[422468223,1778970652000,-6054.0,0.00037969,2]
[422468224,1778970652000,-152.0,0.00038,120]
[422468225,1778970652000,-342.0,0.00038,30]
[422468229,1778970652000,-392.46688782,0.00038099,10]
[422468238,1778970652000,-901.10111614,0.000382,30]
[422468228,1778970652000,-151.14,0.00038051,60]
[422468239,1778970652000,-901.10111612,0.000382,30]
[422468230,1778970652000,-1000.0,0.00038099,33]
[422468240,1778970652000,-901.10111612,0.000382,30]
[422468233,1778970652000,-914.9,0.00038125,30]
[422468231,1778970652000,-9368.3861182,0.000381,33]
[422468237,1778970652000,-1332.21103555,0.000382,30]
[422468235,1778970652000,-1000.0,0.00038199,40]
[422468236,1778970652000,-1332.21103555,0.000382,30]
[422468234,1778970652000,-151.14,0.00038151,60]
[422468279,1778970652000,-186.0,0.00038356,2]
[422468241,1778970652000,-308.0,0.000382,2]
[422468243,1778970652000,-2000.0,0.000383,7]
[422468245,1778970652000,-10000.0,0.00038327,2]
[422468244,1778970652000,-2000.0,0.00038327,2]
[422468248,1778970652000,-1582.625274,0.00038327,2]
[422468246,1778970652000,-3075.274003,0.00038327,2]
[422468249,1778970652000,-265990.6042015,0.00038327,2]
[422468275,1778970652000,-535.0,0.0003835,14]
[422468242,1778970652000,-151.14,0.00038251,60]
[422468277,1778970652000,-150.0,0.00038356,2]
[422468304,1778970652000,-184.0,0.00038356,2]
[422468306,1778970652000,-500.0,0.0003838,120]
[422468300,1778970652000,-350.0,0.00038356,2]
[422468305,1778970652000,-300.0,0.00038356,120]
[422468310,1778970652000,-500.0,0.0003838,120]
[422468312,1778970652000,-500.0,0.0003838,120]
[422468314,1778970652000,-500.0,0.0003838,120]
[422468313,1778970652000,-500.0,0.0003838,120]
[422468311,1778970652000,-500.0,0.0003838,120]
[422468315,1778970652000,-500.0,0.0003838,120]
[422468322,1778970652000,-300.0,0.00038393,2]
[422468321,1778970652000,-188.0271109,0.0003838,120]
[422468316,1778970652000,-500.0,0.0003838,120]
[422468317,1778970652000,-500.0,0.0003838,120]
[422468320,1778970652000,-532.0691179,0.0003838,120]
[422468319,1778970652000,-500.0,0.0003838,120]
[422468318,1778970652000,-500.0,0.0003838,120]
[422468324,1778970652000,-300.0,0.00038393,2]
[422468323,1778970652000,-300.0,0.00038393,2]
[422468325,1778970652000,-300.0,0.00038393,2]
[422468327,1778970652000,-300.0,0.00038393,2]
[422468326,1778970652000,-300.0,0.00038393,2]
[422468284,1778970652000,-350.0,0.00038356,2]
[422468301,1778970652000,-235.0,0.00038356,2]
[422468297,1778970652000,-200.0,0.00038356,2]
[422468253,1778970652000,-151.428047,0.00038327,7]
[422468307,1778970652000,-500.0,0.0003838,120]
[422468285,1778970652000,-350.0,0.00038356,2]
[422468303,1778970652000,-250.0,0.00038356,2]
[422468274,1778970652000,-284.289204,0.00038327,7]
[422468280,1778970652000,-210.0,0.00038356,2]
[422468276,1778970652000,-151.18052307,0.00038351,60]
[422468278,1778970652000,-252.0,0.00038356,2]
[422468283,1778970652000,-177.0,0.00038356,2]
[422468281,1778970652000,-250.0,0.00038356,2]
[422468286,1778970652000,-281.0,0.00038356,2]
[422468288,1778970652000,-500.0,0.00038356,2]
[422468289,1778970652000,-468.0,0.00038356,2]
[422468290,1778970652000,-450.0,0.00038356,2]
[422468282,1778970652000,-250.0,0.00038356,2]
[422468291,1778970652000,-450.0,0.00038356,2]
[422468292,1778970652000,-424.0,0.00038356,2]
[422468299,1778970652000,-350.0,0.00038356,2]
[422468302,1778970652000,-250.0,0.00038356,2]
[422468309,1778970652000,-500.0,0.0003838,120]
[422468298,1778970652000,-276.0,0.00038356,2]
[422468308,1778970652000,-500.0,0.0003838,120]
[422468293,1778970652000,-296.0,0.00038356,2]
[422468295,1778970652000,-250.0,0.00038356,2]
[422468294,1778970652000,-250.0,0.00038356,2]
[422468296,1778970652000,-214.0,0.00038356,2]
[422468287,1778970652000,-500.0,0.00038356,2]
[422468368,1778970653000,-1000.0,0.00039183,2]
[422468372,1778970653000,-500.0,0.00039248,120]
[422468365,1778970653000,-1055.71445443,0.00039171,20]
[422468369,1778970653000,-1000.0,0.00039199,45]
[422468362,1778970653000,-151.0,0.000391,120]
[422468354,1778970653000,-1000.0,0.00038912,107]
[422468363,1778970653000,-5561.18796262,0.00039134,2]
[422468366,1778970653000,-1021.92649438,0.00039171,20]
[422468371,1778970653000,-1000.0,0.00039235,90]
[422468360,1778970653000,-342.0,0.00039,30]
[422468364,1778970653000,-150.0,0.00039161,2]
[422468361,1778970653000,-1000.0,0.00039078,3]
[422468367,1778970653000,-400.0,0.00039183,2]
[422468387,1778970653000,-500.0,0.00039344,7]
[422468373,1778970653000,-500.0,0.00039248,120]
[422468384,1778970653000,-500.0,0.00039344,7]
[422468376,1778970653000,-152.0,0.000393,120]
[422468375,1778970653000,-1000.0,0.00039286,90]
[422468383,1778970653000,-500.0,0.00039344,7]
[422468381,1778970653000,-269.25,0.00039344,2]
[422468382,1778970653000,-500.0,0.00039344,7]
[422468377,1778970653000,-2000.0,0.000393,7]
[422468380,1778970653000,-577.61,0.00039344,2]
[422468378,1778970653000,-2082.01435369,0.00039324,6]
[422468379,1778970653000,-350.0,0.00039335,2]
[422468355,1778970653000,-798.25269025,0.00038913,7]
[422468374,1778970653000,-876.171,0.00039248,120]
[422468356,1778970653000,-199.56317256,0.00038913,7]
[422468342,1778970653000,-314.0,0.000388,2]
[422468350,1778970653000,-1000.0,0.00038899,18]
[422468329,1778970653000,-152.0,0.000384,120]
[422468330,1778970653000,-1078.25,0.000385,30]
[422468332,1778970653000,-350.0,0.00038595,2]
[422468328,1778970653000,-309.34,0.00038393,2]
[422468331,1778970653000,-1000.0,0.00038518,103]
[422468333,1778970653000,-350.0,0.00038612,3]
[422468336,1778970653000,-2132.0,0.00038703,11]
[422468334,1778970653000,-1000.0,0.00038667,2]
[422468335,1778970653000,-1000.0,0.00038699,10]
[422468338,1778970653000,-2312.0,0.00038721,11]
[422468345,1778970653000,-1000.0,0.00038859,6]
[422468337,1778970653000,-163.0,0.00038706,11]
[422468339,1778970653000,-5800.0,0.0003873,14]
[422468341,1778970653000,-1000.0,0.000388,2]
[422468340,1778970653000,-628.8113,0.0003873,2]
[422468343,1778970653000,-884.0,0.000388,2]
[422468385,1778970653000,-500.0,0.00039344,7]
[422468344,1778970653000,-350.0,0.00038831,2]
[422468347,1778970653000,-1000.0,0.00038898,13]
[422468358,1778970653000,-1000.0,0.00038989,60]
[422468349,1778970653000,-1000.0,0.00038898,17]
[422468357,1778970653000,-350.0,0.0003895,2]
[422468359,1778970653000,-1147.32,0.00039,30]
[422468348,1778970653000,-1000.0,0.00038898,39]
[422468346,1778970653000,-535.0,0.00038884,14]
[422468352,1778970653000,-152.0,0.000389,120]
[422468351,1778970653000,-1000.0,0.00038899,44]
[422468353,1778970653000,-2000.0,0.000389,7]
[422468389,1778970653000,-500.0,0.00039344,7]
[422468370,1778970653000,-952.45,0.000392,90]
[422468396,1778970653000,-500.0,0.00039344,7]
[422468422,1778970653000,-152.0,0.000398,120]
[422468424,1778970653000,-1078.25,0.000398,30]
[422468428,1778970653000,-200.0,0.00039855,7]
[422468426,1778970653000,-1000.0,0.00039811,90]
[422468421,1778970653000,-1000.0,0.00039786,90]
[422468423,1778970653000,-969.78,0.000398,30]
[422468425,1778970653000,-1000.0,0.00039801,120]
[422468427,1778970653000,-2651.34774157,0.00039825,120]
[422468430,1778970653000,-200.0,0.00039855,7]
[422468429,1778970653000,-200.0,0.00039855,7]
[422468431,1778970653000,-500.0,0.00039855,7]
[422468433,1778970653000,-500.0,0.00039855,7]
[422468432,1778970653000,-200.0,0.00039855,7]
[422468439,1778970653000,-151.0,0.00039855,7]
[422468438,1778970653000,-524.40294489,0.00039855,7]
[422468442,1778970653000,-151.0,0.00039855,7]
[422468441,1778970653000,-500.0,0.00039855,7]
[422468436,1778970653000,-151.0,0.00039855,7]
[422468435,1778970653000,-500.0,0.00039855,7]
[422468440,1778970653000,-200.0,0.00039855,7]
[422468437,1778970653000,-200.0,0.00039855,7]
[422468444,1778970653000,-500.0,0.00039855,7]
[422468445,1778970653000,-151.0,0.00039855,7]
[422468447,1778970653000,-500.0,0.00039855,7]
[422468443,1778970653000,-200.0,0.00039855,7]
[422468446,1778970653000,-200.0,0.00039855,7]
[422468390,1778970653000,-500.0,0.00039344,7]
[422468420,1778970653000,-300.0,0.00039726,120]
[422468414,1778970653000,-33203.06255087,0.0003958,2]
[422468434,1778970653000,-200.0,0.00039855,7]
[422468417,1778970653000,-2651.34774157,0.0003966,120]
[422468394,1778970653000,-500.0,0.00039344,7]
[422468411,1778970653000,-354.11,0.00039542,30]
[422468388,1778970653000,-500.0,0.00039344,7]
[422468391,1778970653000,-500.0,0.00039344,7]
[422468395,1778970653000,-500.0,0.00039344,7]
[422468392,1778970653000,-500.0,0.00039344,7]
[422468386,1778970653000,-500.0,0.00039344,7]
[422468393,1778970653000,-500.0,0.00039344,7]
[422468406,1778970653000,-1000.0,0.00039458,90]
[422468398,1778970653000,-8321.47,0.000394,14]
[422468404,1778970653000,-394.1,0.00039423,120]
[422468407,1778970653000,-1000.0,0.00039499,32]
[422468405,1778970653000,-1000.0,0.00039436,90]
[422468400,1778970653000,-535.0,0.00039418,15]
[422468397,1778970653000,-439.6,0.00039344,7]
[422468410,1778970653000,-1000.0,0.00039513,90]
[422468418,1778970653000,-1000.0,0.00039665,11]
[422468399,1778970653000,-150.60535524,0.00039412,2]
[422468416,1778970653000,-1000.0,0.00039599,30]
[422468413,1778970653000,-150.0,0.00039579,2]
[422468415,1778970653000,-394.11,0.0003958,120]
[422468419,1778970653000,-1000.0,0.00039725,5]
[422468412,1778970653000,-1000.0,0.00039576,90]
[422468408,1778970653000,-1569.946778,0.000395,32]
[422468402,1778970653000,-169.17,0.00039421,3]
[422468403,1778970653000,-223.53,0.00039423,120]
[422468401,1778970653000,-169.17,0.00039421,3]
[422468409,1778970653000,-1000.0,0.00039505,2]
[422468488,1778970654000,-2319.72410669,0.00039855,7]
[422468492,1778970654000,-2405.55389864,0.00039855,7]
[422468490,1778970654000,-225.18697532,0.00039855,7]
[422468491,1778970654000,-299.33286419,0.00039855,7]
[422468489,1778970654000,-151.0,0.00039855,7]
[422468487,1778970654000,-217.15233878,0.00039855,7]
[422468482,1778970654000,-2080.17592889,0.00039855,7]
[422468485,1778970654000,-209.40437684,0.00039855,7]
[422468484,1778970654000,-2157.14243826,0.00039855,7]
[422468483,1778970654000,-201.93286099,0.00039855,7]
[422468493,1778970654000,-233.51889341,0.00039855,7]
[422468481,1778970654000,-194.72792766,0.00039855,7]
[422468486,1778970654000,-2236.95670848,0.00039855,7]
[422468494,1778970654000,-2494.55939289,0.00039855,7]
[422468520,1778970654000,-1540.0,0.00039856,7]
[422468496,1778970654000,-2586.85809042,0.00039855,7]
[422468500,1778970654000,-2991.49051684,0.00039855,7]
[422468498,1778970654000,-2781.82699784,0.00039855,7]
[422468504,1778970654000,-1540.0,0.00039856,7]
[422468502,1778970654000,-1540.0,0.00039856,7]
[422468499,1778970654000,-2884.75459676,0.00039855,7]
[422468507,1778970654000,-151.0,0.00039856,7]
[422468505,1778970654000,-151.0,0.00039856,7]
[422468497,1778970654000,-2682.57183977,0.00039855,7]
[422468501,1778970654000,-1000.0,0.00039855,7]
[422468506,1778970654000,-1540.0,0.00039856,7]
[422468503,1778970654000,-1540.0,0.00039856,7]
[422468480,1778970654000,-187.78006525,0.00039855,7]
[422468519,1778970654000,-1540.0,0.00039856,7]
[422468495,1778970654000,-300.97553011,0.00039855,7]
[422468478,1778970654000,-174.61919141,0.00039855,7]
[422468450,1778970654000,-500.0,0.00039855,7]
[422468476,1778970654000,-152.0,0.00039855,7]
[422468517,1778970654000,-189.16159491,0.00039856,7]
[422468449,1778970654000,-200.0,0.00039855,7]